[Event "Turkish Club Cup 2019"]
[Site "Konya"]
[Date "2019.07.16"]
[Round "1"]
[White "Saridag, Omer Melih"]
[Black "Gulbas, Isa"]
[Result "1-0"]
[ECO "D00"]
[WhiteElo "1820"]
[BlackElo "1486"]
[Annotator "NA"]
[PlyCount "89"]
[EventDate "2019.07.16"]
[EventType "team-tourn"]
[EventCountry "TUR"]
[SourceTitle "playchess.com"]
[Source "ChessBase"]
[SourceQuality "1"]
[TimeControl "5400+30"]

1. d4 {[%emt 0:00:30]} Nf6 {[%emt 0:00:30]} 2. Bg5 {[%emt 0:00:30]} d5 {[%emt 0:00:30]} 3. Bxf6 {[%emt 0:00:30]} exf6 {[%emt 0:00:00]} 4. e3 {[%emt 0:00:30]} Bd6 {[%emt 0:00:00]} 5. c4 {[%emt 0:00:30]} dxc4 {[%emt 0:04:30]} 6. Bxc4 {[%emt 0:02:30]} O-O {[%emt 0:00:30]} 7. Nc3 {[%emt 0:00:30]} c6 {[%emt 0:00:30]} 8. Qc2 {[%emt 0:05:30]} Re8 {[%emt 0:01:30]} 9. h3 {[%emt 0:01:30]} Be6 {[%emt 0:13:30]} 10. Bxe6 {[%emt 0:04:30]} fxe6 {[%emt 0:00:00]} 11. Nf3 {[%emt 0:01:30]} Nd7 {[%emt 0:03:00]} 12. O-O {[%emt 0:00:30]} e5 {[%emt 0:00:30]} 13. Qb3+ {[%emt 0:04:30]} Kh8 {[%emt 0:02:30]} 14. Qxb7 {[%emt 0:06:30]} Re6 {[%emt 0:09:30]} 15. Qxc6 {[%emt 0:15:30]} exd4 {[%emt 0:02:30]} 16. Qd5 {[%emt 0:00:00]} dxc3 {[%emt 0:00:30]} 17. Qxe6 {[%emt 0:01:00]} cxb2 {[%emt 0:00:00]} 18. Rad1 {[%emt 0:01:30]} Ba3 {[%emt 0:05:00]} 19. Rxd7 {[%emt 0:04:30]} Qf8 {[%emt 0:02:30]} 20. Qf7 {[%emt 0:04:30]} Qxf7 {[%emt 0:06:30]} 21. Rxf7 {[%emt 0:00:30]} a5 {[%emt 0:15:30]} 22. Rd7 {[%emt 0:02:30]} Rc8 {[%emt 0:00:30]} 23. Rfd1 {[%emt 0:04:30]} Bf8 {[%emt 0:02:30]} 24. Rb1 {[%emt 0:00:30]} Ba3 {[%emt 0:07:30]} 25. Kf1 {[%emt 0:00:30]} Kg8 {[%emt 0:01:30]} 26. Ke2 {[%emt 0:04:30]} Kf8 {[%emt 0:00:30]} 27. Rd3 {[%emt 0:00:30]} Rc1 {[%emt 0:01:30]} 28. Rd1 {[%emt 0:00:30]} Rc2+ {[%emt 0:00:30]} 29. Rd2 {[%emt 0:00:00]} Rc1 {[%emt 0:00:30]} 30. Rbxb2 {[%emt 0:00:00]} Bxb2 {[%emt 0:00:30]} 31. Rxb2 {[%emt 0:00:30]} Rc5 {[%emt 0:00:00]} 32. Nd4 {[%emt 0:00:00]} Rc8 {[%emt 0:00:00]} 33. Rb5 {[%emt 0:00:00]} Ra8 {[%emt 0:00:30]} 34. a4 {[%emt 0:00:00]} Ke8 {[%emt 0:00:30]} 35. Nb3 {[%emt 0:01:00]} Rc8 {[%emt 0:00:00]} 36. Rxa5 {[%emt 0:00:00]} Rc2+ {[%emt 0:00:00]} 37. Kf3 {[%emt 0:00:00]} Kf7 {[%emt 0:00:30]} 38. Ra7+ {[%emt 0:00:30]} Kg6 {[%emt 0:00:00]} 39. a5 {[%emt 0:00:00]} Ra2 {[%emt 0:00:00]} 40. a6 {[%emt 0:00:00]} h6 {[%emt 0:00:00]} 41. Ra8 {[%emt 0:00:00]} Kf7 {[%emt 0:00:00]} 42. a7 {[%emt 0:00:00]} Kg6 {[%emt 0:00:30]} 43. Nd4 {[%emt 0:00:00]} Ra6 {[%emt 0:00:00]} 44. Nb5 {[%emt 0:00:00]} Rxa7 {[%emt 0:01:00]} 45. Ke4 {[%emt 0:00:30]} 1-0

[Event "Turkish Club Cup 2019"]
[Site "Konya"]
[Date "2019.07.16"]
[Round "1"]
[White "Yurdakul, Didem Nuray"]
[Black "Seyhan, Pelin"]
[Result "1-0"]
[ECO "C10"]
[WhiteElo "1779"]
[BlackElo "1333"]
[Annotator "NA"]
[PlyCount "135"]
[EventDate "2019.07.16"]
[EventType "team-tourn"]
[EventCountry "TUR"]
[SourceTitle "playchess.com"]
[Source "ChessBase"]
[SourceQuality "1"]
[TimeControl "5400+30"]

1. e4 {[%emt 0:00:30]} e6 {[%emt 0:00:30]} 2. d4 {[%emt 0:00:30]} d5 {[%emt 0:00:30]} 3. Nd2 {[%emt 0:00:30]} dxe4 {[%emt 0:00:00]} 4. Nxe4 {[%emt 0:00:00]} Bd7 {[%emt 0:00:00]} 5. Nf3 {[%emt 0:00:00]} Bc6 {[%emt 0:00:00]} 6. Bd3 {[%emt 0:02:30]} Nd7 {[%emt 0:00:00]} 7. O-O {[%emt 0:00:00]} Ngf6 {[%emt 0:00:30]} 8. Nxf6+ {[%emt 0:02:00]} Nxf6 {[%emt 0:00:00]} 9. c3 {[%emt 0:01:30]} Be7 {[%emt 0:00:00]} 10. Qe2 {[%emt 0:04:30]} O-O {[%emt 0:05:30]} 11. Bg5 {[%emt 0:01:30]} Nd5 {[%emt 0:01:30]} 12. Bxe7 {[%emt 0:01:30]} Qxe7 {[%emt 0:01:30]} 13. Qc2 {[%emt 0:07:30]} g6 {[%emt 0:01:30]} 14. Ne5 {[%emt 0:00:30]} Be8 {[%emt 0:00:30]} 15. Rfe1 {[%emt 0:01:30]} Nf4 {[%emt 0:01:30]} 16. Be4 {[%emt 0:00:30]} c6 {[%emt 0:00:30]} 17. Re3 {[%emt 0:03:30]} Rd8 {[%emt 0:04:30]} 18. Rae1 {[%emt 0:05:30]} f6 {[%emt 0:02:30]} 19. Nd3 {[%emt 0:01:30]} Nxd3 {[%emt 0:01:30]} 20. Bxd3 {[%emt 0:00:30]} Bf7 {[%emt 0:00:30]} 21. Bc4 {[%emt 0:03:30]} Rfe8 {[%emt 0:00:30]} 22. Qb3 {[%emt 0:01:30]} Rd6 {[%emt 0:01:30]} 23. f4 {[%emt 0:04:30]} f5 {[%emt 0:01:30]} 24. d5 {[%emt 0:01:30]} cxd5 {[%emt 0:01:30]} 25. Bxd5 {[%emt 0:01:30]} b6 {[%emt 0:01:30]} 26. Bc4 {[%emt 0:05:30]} Kf8 {[%emt 0:06:30]} 27. a4 {[%emt 0:02:30]} Qd8 {[%emt 0:05:30]} 28. Qa3 {[%emt 0:06:30]} Kg7 {[%emt 0:00:30]} 29. b4 {[%emt 0:02:30]} Qc7 {[%emt 0:00:30]} 30. Qa2 {[%emt 0:01:30]} Qc8 {[%emt 0:02:30]} 31. Qe2 {[%emt 0:00:30]} Kf6 {[%emt 0:04:30]} 32. Rh3 {[%emt 0:00:30]} Bg8 {[%emt 0:01:30]} 33. Qe5+ {[%emt 0:01:30]} Ke7 {[%emt 0:00:30]} 34. Qg7+ {[%emt 0:00:30]} Kd8 {[%emt 0:00:30]} 35. Bb5 {[%emt 0:00:30]} Rd7 {[%emt 0:03:30]} 36. Bxd7 {[%emt 0:01:30]} Qxd7 {[%emt 0:00:30]} 37. Qxd7+ {[%emt 0:00:00]} Kxd7 {[%emt 0:00:00]} 38. Rd3+ {[%emt 0:00:00]} Ke7 {[%emt 0:00:00]} 39. Red1 {[%emt 0:00:30]} Rc8 {[%emt 0:00:30]} 40. Rd7+ {[%emt 0:00:00]} Kf6 {[%emt 0:00:30]} 41. Rd8 {[%emt 0:00:00]} Rxd8 {[%emt 0:00:30]} 42. Rxd8 {[%emt 0:00:00]} Bf7 {[%emt 0:00:30]} 43. Ra8 {[%emt 0:00:00]} a5 {[%emt 0:00:30]} 44. bxa5 {[%emt 0:00:30]} bxa5 {[%emt 0:00:30]} 45. Rxa5 {[%emt 0:00:00]} Be8 {[%emt 0:00:00]} 46. Kf2 {[%emt 0:00:00]} g5 {[%emt 0:00:00]} 47. fxg5+ {[%emt 0:00:30]} Kxg5 {[%emt 0:00:30]} 48. Ra8 {[%emt 0:00:00]} Bc6 {[%emt 0:00:00]} 49. Ra6 {[%emt 0:00:00]} Bd7 {[%emt 0:00:00]} 50. a5 {[%emt 0:00:30]} h5 {[%emt 0:00:30]} 51. Rd6 {[%emt 0:00:00]} Bc8 {[%emt 0:00:00]} 52. a6 {[%emt 0:00:00]} e5 {[%emt 0:00:00]} 53. a7 {[%emt 0:00:30]} Bb7 {[%emt 0:00:30]} 54. Rd8 {[%emt 0:00:00]} Kf4 {[%emt 0:00:00]} 55. a8=Q {[%emt 0:00:00]} Bxa8 {[%emt 0:00:00]} 56. Rxa8 {[%emt 0:00:00]} h4 {[%emt 0:00:30]} 57. c4 {[%emt 0:00:00]} e4 {[%emt 0:00:00]} 58. g3+ {[%emt 0:00:30]} hxg3+ {[%emt 0:00:00]} 59. hxg3+ {[%emt 0:00:00]} Kg4 {[%emt 0:00:30]} 60. c5 {[%emt 0:00:00]} e3+ {[%emt 0:00:30]} 61. Kxe3 {[%emt 0:00:00]} Kxg3 {[%emt 0:00:30]} 62. Rg8+ {[%emt 0:00:00]} Kh3 {[%emt 0:00:00]} 63. c6 {[%emt 0:00:30]} Kh4 {[%emt 0:00:00]} 64. c7 {[%emt 0:00:30]} Kh5 {[%emt 0:00:00]} 65. c8=Q {[%emt 0:00:00]} Kh4 {[%emt 0:00:00]} 66. Qc7 {[%emt 0:00:00]} f4+ {[%emt 0:00:30]} 67. Qxf4+ {[%emt 0:00:30]} Kh5 {[%emt 0:00:30]} 68. Qg5# {[%emt 0:00:00]} 1-0

[Event "Turkish Club Cup 2019"]
[Site "Konya"]
[Date "2019.07.16"]
[Round "1"]
[White "Erdogan, Tekin Alp"]
[Black "Karaburun, Isa Emre"]
[Result "1-0"]
[ECO "B51"]
[WhiteElo "1777"]
[BlackElo "1230"]
[Annotator "NA"]
[PlyCount "151"]
[EventDate "2019.07.16"]
[EventType "team-tourn"]
[EventCountry "TUR"]
[SourceTitle "playchess.com"]
[Source "ChessBase"]
[SourceQuality "1"]
[TimeControl "5400+30"]

1. e4 {[%emt 0:00:30]} c5 {[%emt 0:00:30]} 2. Nf3 {[%emt 0:00:00]} Nc6 {[%emt 0:00:30]} 3. Bb5 {[%emt 0:00:00]} d6 {[%emt 0:00:00]} 4. O-O {[%emt 0:00:30]} Nf6 {[%emt 0:00:00]} 5. Re1 {[%emt 0:00:00]} e6 {[%emt 0:00:30]} 6. c3 {[%emt 0:01:00]} a6 {[%emt 0:00:00]} 7. Bxc6+ {[%emt 0:00:30]} bxc6 {[%emt 0:00:00]} 8. e5 {[%emt 0:00:00]} Nd7 {[%emt 0:04:30]} 9. exd6 {[%emt 0:02:00]} Bxd6 {[%emt 0:00:00]} 10. d4 {[%emt 0:02:30]} O-O {[%emt 0:02:00]} 11. Nbd2 {[%emt 0:01:30]} Nf6 {[%emt 0:04:30]} 12. Nc4 {[%emt 0:00:30]} Be7 {[%emt 0:00:30]} 13. Bg5 {[%emt 0:03:30]} cxd4 {[%emt 0:08:30]} 14. Qxd4 {[%emt 0:01:30]} Qxd4 {[%emt 0:01:30]} 15. Nxd4 {[%emt 0:00:30]} Nd5 {[%emt 0:02:30]} 16. Bxe7 {[%emt 0:01:30]} Nxe7 {[%emt 0:00:00]} 17. Re5 {[%emt 0:01:30]} Rb8 {[%emt 0:14:00]} 18. Rc5 {[%emt 0:04:30]} Bd7 {[%emt 0:02:30]} 19. Ra5 {[%emt 0:00:30]} Rfc8 {[%emt 0:04:30]} 20. Nb3 {[%emt 0:05:30]} Nd5 {[%emt 0:16:30]} 21. Rxa6 {[%emt 0:03:30]} c5 {[%emt 0:02:30]} 22. Ra5 {[%emt 0:00:30]} Rb5 {[%emt 0:01:30]} 23. Rxb5 {[%emt 0:00:30]} Bxb5 {[%emt 0:00:30]} 24. Nd6 {[%emt 0:00:30]} Rb8 {[%emt 0:00:30]} 25. Nxb5 {[%emt 0:00:00]} c4 {[%emt 0:00:30]} 26. Nd2 {[%emt 0:01:00]} Rxb5 {[%emt 0:00:30]} 27. Nxc4 {[%emt 0:00:00]} Rb8 {[%emt 0:00:30]} 28. a4 {[%emt 0:00:00]} Kf8 {[%emt 0:00:30]} 29. a5 {[%emt 0:00:30]} Ke7 {[%emt 0:00:30]} 30. Kf1 {[%emt 0:03:30]} f6 {[%emt 0:01:30]} 31. Ke2 {[%emt 0:00:30]} Kd7 {[%emt 0:00:30]} 32. Kd2 {[%emt 0:00:30]} Kc6 {[%emt 0:01:30]} 33. Kc2 {[%emt 0:00:30]} Kc5 {[%emt 0:00:30]} 34. Ne3 {[%emt 0:00:00]} Nc7 {[%emt 0:02:30]} 35. b4+ {[%emt 0:01:00]} Kc6 {[%emt 0:00:30]} 36. Nc4 {[%emt 0:03:30]} Nd5 {[%emt 0:01:30]} 37. Kb3 {[%emt 0:00:30]} Kc7 {[%emt 0:01:30]} 38. Ne3 {[%emt 0:03:30]} Ne7 {[%emt 0:00:30]} 39. Ka4 {[%emt 0:02:30]} Kc6 {[%emt 0:01:30]} 40. Rb1 {[%emt 0:02:30]} Nc8 {[%emt 0:02:30]} 41. Nc4 {[%emt 0:06:30]} Kd5 {[%emt 0:00:30]} 42. Kb3 {[%emt 0:01:30]} Kc6 {[%emt 0:00:30]} 43. Rd1 {[%emt 0:00:30]} Kc7 {[%emt 0:01:30]} 44. Ka4 {[%emt 0:01:30]} Na7 {[%emt 0:02:30]} 45. Nb6 {[%emt 0:00:30]} Kc6 {[%emt 0:00:30]} 46. c4 {[%emt 0:01:30]} Rb7 {[%emt 0:02:49]} 47. Rd8 {[%emt 0:03:30]} Rc7 {[%emt 0:00:31]} 48. Kb3 {[%emt 0:00:30]} Kb7 {[%emt 0:00:28]} 49. Rd7 {[%emt 0:00:30]} Rxd7 {[%emt 0:00:22]} 50. Nxd7 {[%emt 0:00:30]} Nc6 {[%emt 0:00:30]} 51. Nc5+ {[%emt 0:00:30]} Ka7 {[%emt 0:00:30]} 52. Nxe6 {[%emt 0:00:30]} g6 {[%emt 0:00:30]} 53. Nf8 {[%emt 0:00:30]} Nd4+ {[%emt 0:00:30]} 54. Ka4 {[%emt 0:00:30]} Ne2 {[%emt 0:00:30]} 55. Nxh7 {[%emt 0:00:30]} Nc3+ {[%emt 0:00:30]} 56. Kb3 {[%emt 0:00:30]} Ne4 {[%emt 0:00:30]} 57. f3 {[%emt 0:00:30]} Nd2+ {[%emt 0:00:30]} 58. Kc3 {[%emt 0:00:30]} Nf1 {[%emt 0:00:30]} 59. Nxf6 {[%emt 0:00:30]} Nxh2 {[%emt 0:00:30]} 60. b5 {[%emt 0:00:30]} Nf1 {[%emt 0:00:30]} 61. c5 {[%emt 0:00:30]} Ne3 {[%emt 0:00:30]} 62. c6 {[%emt 0:00:30]} Kb8 {[%emt 0:00:30]} 63. b6 {[%emt 0:00:30]} Nf5 {[%emt 0:00:30]} 64. Nd7+ {[%emt 0:00:30]} Kc8 {[%emt 0:00:30]} 65. b7+ {[%emt 0:00:30]} Kc7 {[%emt 0:00:30]} 66. b8=Q+ {[%emt 0:00:30]} Kxc6 {[%emt 0:00:30]} 67. Ne5+ {[%emt 0:00:30]} Kd5 {[%emt 0:00:00]} 68. a6 {[%emt 0:00:00]} Nd6 {[%emt 0:00:00]} 69. a7 {[%emt 0:00:00]} Kxe5 {[%emt 0:00:00]} 70. a8=Q {[%emt 0:00:00]} Ke6 {[%emt 0:00:00]} 71. Qg8+ {[%emt 0:00:00]} Kf5 {[%emt 0:00:00]} 72. Qad5+ {[%emt 0:00:00]} Kf4 {[%emt 0:00:00]} 73. Qxd6+ {[%emt 0:00:00]} Ke3 {[%emt 0:00:00]} 74. Qd4+ {[%emt 0:00:00]} Ke2 {[%emt 0:00:00]} 75. Qa2+ {[%emt 0:00:00]} Ke1 {[%emt 0:00:00]} 76. Qg1# {[%emt 0:00:00]} 1-0

[Event "Turkish Club Cup 2019"]
[Site "Konya"]
[Date "2019.07.16"]
[Round "1"]
[White "Cakir, Ege"]
[Black "Yarici, Ferhat Oguzhan"]
[Result "1-0"]
[ECO "D03"]
[WhiteElo "1765"]
[BlackElo "1254"]
[Annotator "NA"]
[PlyCount "91"]
[EventDate "2019.07.16"]
[EventType "team-tourn"]
[EventCountry "TUR"]
[SourceTitle "playchess.com"]
[Source "ChessBase"]
[SourceQuality "1"]
[TimeControl "5400+30"]

1. d4 {[%emt 0:00:30]} e6 {[%emt 0:00:30]} 2. Nf3 {[%emt 0:00:00]} Nf6 {[%emt 0:00:30]} 3. Bg5 {[%emt 0:00:00]} Be7 {[%emt 0:00:30]} 4. e3 {[%emt 0:00:00]} d5 {[%emt 0:00:30]} 5. Bd3 {[%emt 0:00:00]} Nbd7 {[%emt 0:00:30]} 6. Nbd2 {[%emt 0:00:30]} O-O {[%emt 0:00:30]} 7. O-O {[%emt 0:00:00]} c6 {[%emt 0:01:30]} 8. c3 {[%emt 0:00:00]} h6 {[%emt 0:00:30]} 9. Bxf6 {[%emt 0:02:30]} Nxf6 {[%emt 0:00:30]} 10. Ne5 {[%emt 0:00:00]} c5 {[%emt 0:03:30]} 11. f4 {[%emt 0:04:00]} cxd4 {[%emt 0:06:30]} 12. exd4 {[%emt 0:00:30]} Nd7 {[%emt 0:08:30]} 13. Ndf3 {[%emt 0:01:30]} Bd6 {[%emt 0:04:30]} 14. Nxd7 {[%emt 0:02:30]} Bxd7 {[%emt 0:00:30]} 15. Ne5 {[%emt 0:00:30]} f5 {[%emt 0:16:30]} 16. Qe2 {[%emt 0:01:30]} a6 {[%emt 0:10:30]} 17. Rae1 {[%emt 0:00:30]} Rf6 {[%emt 0:02:30]} 18. a3 {[%emt 0:07:30]} b5 {[%emt 0:01:30]} 19. Qc2 {[%emt 0:13:30]} Be8 {[%emt 0:02:30]} 20. Be2 {[%emt 0:03:30]} Rc8 {[%emt 0:00:30]} 21. Nd3 {[%emt 0:03:30]} Qb6 {[%emt 0:02:30]} 22. Qd2 {[%emt 0:01:30]} g6 {[%emt 0:01:30]} 23. b4 {[%emt 0:00:30]} Qc7 {[%emt 0:04:30]} 24. Nc5 {[%emt 0:03:30]} Bxc5 {[%emt 0:00:00]} 25. dxc5 {[%emt 0:00:00]} Bc6 {[%emt 0:03:00]} 26. Qd4 {[%emt 0:00:00]} Kf7 {[%emt 0:00:30]} 27. Bd3 {[%emt 0:02:30]} Re8 {[%emt 0:02:30]} 28. Re5 {[%emt 0:01:30]} Qd7 {[%emt 0:00:30]} 29. Bc2 {[%emt 0:01:30]} Rd8 {[%emt 0:01:30]} 30. Bb3 {[%emt 0:00:00]} Qb7 {[%emt 0:00:30]} 31. Ra1 {[%emt 0:01:00]} Qd7 {[%emt 0:00:30]} 32. Rd1 {[%emt 0:01:30]} Qb7 {[%emt 0:00:30]} 33. c4 {[%emt 0:04:30]} bxc4 {[%emt 0:00:00]} 34. Bxc4 {[%emt 0:00:00]} Rd7 {[%emt 0:00:00]} 35. Bd3 {[%emt 0:02:00]} Bb5 {[%emt 0:01:30]} 36. Rc1 {[%emt 0:04:30]} Qc6 {[%emt 0:02:30]} 37. Re3 {[%emt 0:01:30]} Bxd3 {[%emt 0:05:14]} 38. Rxd3 {[%emt 0:00:30]} g5 {[%emt 0:00:19]} 39. fxg5 {[%emt 0:02:30]} hxg5 {[%emt 0:03:32]} 40. Rh3 {[%emt 0:00:00]} Kg6 {[%emt 0:08:50]} 41. Rh6+ {[%emt 0:01:00]} Kxh6 {[%emt 0:00:30]} 42. Qxf6+ {[%emt 0:00:30]} Kh5 {[%emt 0:00:00]} 43. Re1 {[%emt 0:00:00]} Qc7 {[%emt 0:06:00]} 44. Rxe6 {[%emt 0:01:00]} Rf7 {[%emt 0:01:47]} 45. Qh6+ {[%emt 0:00:00]} Kg4 {[%emt 0:00:00]} 46. Qh3+ {[%emt 0:00:00]} 1-0

[Event "Turkish Club Cup 2019"]
[Site "Konya"]
[Date "2019.07.16"]
[Round "1"]
[White "Asan, Elvan"]
[Black "Senkal, Defne"]
[Result "1-0"]
[ECO "B53"]
[WhiteElo "1760"]
[BlackElo "1258"]
[Annotator "NA"]
[PlyCount "45"]
[EventDate "2019.07.16"]
[EventType "team-tourn"]
[EventCountry "TUR"]
[SourceTitle "playchess.com"]
[Source "ChessBase"]
[SourceQuality "1"]
[TimeControl "5400+30"]

1. e4 {[%emt 0:00:30]} c5 {[%emt 0:00:30]} 2. Nf3 {[%emt 0:00:30]} d6 {[%emt 0:00:00]} 3. d4 {[%emt 0:00:00]} cxd4 {[%emt 0:00:00]} 4. Qxd4 {[%emt 0:00:00]} Nc6 {[%emt 0:00:00]} 5. Bb5 {[%emt 0:00:30]} Bd7 {[%emt 0:05:00]} 6. Bxc6 {[%emt 0:00:30]} Bxc6 {[%emt 0:00:30]} 7. Nc3 {[%emt 0:00:30]} Nf6 {[%emt 0:00:30]} 8. Bg5 {[%emt 0:00:30]} h6 {[%emt 0:01:30]} 9. Bxf6 {[%emt 0:06:30]} exf6 {[%emt 0:01:30]} 10. O-O {[%emt 0:01:30]} Be7 {[%emt 0:01:30]} 11. Nd5 {[%emt 0:01:30]} O-O {[%emt 0:02:30]} 12. Nh4 {[%emt 0:06:30]} Re8 {[%emt 0:17:30]} 13. Nf5 {[%emt 0:01:30]} Bxd5 {[%emt 0:01:30]} 14. exd5 {[%emt 0:06:30]} Qd7 {[%emt 0:03:30]} 15. Qg4 {[%emt 0:04:30]} Qxf5 {[%emt 0:07:30]} 16. Qxf5 {[%emt 0:00:30]} g6 {[%emt 0:03:30]} 17. Qf4 {[%emt 0:00:30]} Kh7 {[%emt 0:00:30]} 18. Rae1 {[%emt 0:00:30]} f5 {[%emt 0:01:30]} 19. Qb4 {[%emt 0:01:30]} b6 {[%emt 0:02:30]} 20. Qb5 {[%emt 0:02:30]} f4 {[%emt 0:05:30]} 21. Re4 {[%emt 0:01:30]} Kg7 {[%emt 0:01:30]} 22. Rfe1 {[%emt 0:00:00]} Kf8 {[%emt 0:00:30]} 23. Qe2 {[%emt 0:01:00]} 1-0

[Event "Turkish Club Cup 2019"]
[Site "Konya"]
[Date "2019.07.16"]
[Round "1"]
[White "Kara, Ali Barkin"]
[Black "Seker, Bilgesu"]
[Result "1-0"]
[ECO "B40"]
[WhiteElo "1749"]
[BlackElo "1273"]
[Annotator "NA"]
[PlyCount "57"]
[EventDate "2019.07.16"]
[EventType "team-tourn"]
[EventCountry "TUR"]
[SourceTitle "playchess.com"]
[Source "ChessBase"]
[SourceQuality "1"]
[TimeControl "5400+30"]

1. e4 {[%emt 0:00:30]} c5 {[%emt 0:00:30]} 2. Nf3 {[%emt 0:00:30]} e6 {[%emt 0:00:30]} 3. b3 {[%emt 0:00:00]} Nc6 {[%emt 0:00:30]} 4. Bb2 {[%emt 0:00:00]} Nf6 {[%emt 0:00:30]} 5. e5 {[%emt 0:00:30]} Nd5 {[%emt 0:01:30]} 6. c4 {[%emt 0:00:00]} Nc7 {[%emt 0:02:30]} 7. g3 {[%emt 0:02:00]} b6 {[%emt 0:01:30]} 8. Bg2 {[%emt 0:00:30]} Bb7 {[%emt 0:00:30]} 9. O-O {[%emt 0:00:30]} Be7 {[%emt 0:01:30]} 10. d4 {[%emt 0:01:30]} cxd4 {[%emt 0:01:30]} 11. Nxd4 {[%emt 0:00:30]} O-O {[%emt 0:09:30]} 12. Nd2 {[%emt 0:02:30]} Rb8 {[%emt 0:06:30]} 13. Nc2 {[%emt 0:03:30]} Ne8 {[%emt 0:12:30]} 14. f4 {[%emt 0:03:30]} d6 {[%emt 0:02:30]} 15. exd6 {[%emt 0:02:30]} Nxd6 {[%emt 0:02:30]} 16. Nf3 {[%emt 0:01:30]} Qc7 {[%emt 0:09:30]} 17. Qe2 {[%emt 0:03:30]} Rfd8 {[%emt 0:03:30]} 18. Kh1 {[%emt 0:02:30]} Ne8 {[%emt 0:06:30]} 19. Rae1 {[%emt 0:03:30]} Rd7 {[%emt 0:07:30]} 20. Ne3 {[%emt 0:02:30]} Nf6 {[%emt 0:09:15]} 21. g4 {[%emt 0:07:30]} g6 {[%emt 0:08:06]} 22. Ba1 {[%emt 0:03:30]} Ne8 {[%emt 0:04:06]} 23. g5 {[%emt 0:00:30]} Bf8 {[%emt 0:00:31]} 24. Ng4 {[%emt 0:01:30]} Bg7 {[%emt 0:01:07]} 25. Bxg7 {[%emt 0:02:30]} Kxg7 {[%emt 0:03:17]} 26. Qb2+ {[%emt 0:01:30]} Kf8 {[%emt 0:01:27]} 27. Qh8+ {[%emt 0:03:30]} Ke7 {[%emt 0:00:03]} 28. Nf6 {[%emt 0:00:30]} Nd6 {[%emt 0:02:46]} 29. Nd5# {[%emt 0:00:30]} 1-0

[Event "Turkish Club Cup 2019"]
[Site "Konya"]
[Date "2019.07.16"]
[Round "1"]
[White "Keskin, Osman Orcun"]
[Black "Karaboga, Baris"]
[Result "1/2-1/2"]
[ECO "D53"]
[WhiteElo "1719"]
[BlackElo "1492"]
[Annotator "NA"]
[PlyCount "64"]
[EventDate "2019.07.16"]
[EventType "team-tourn"]
[EventCountry "TUR"]
[SourceTitle "playchess.com"]
[Source "ChessBase"]
[SourceQuality "1"]
[TimeControl "5400+30"]

1. d4 {[%emt 0:00:30]} Nf6 {[%emt 0:00:30]} 2. Nf3 {[%emt 0:00:30]} e6 {[%emt 0:00:30]} 3. c4 {[%emt 0:00:30]} d5 {[%emt 0:00:30]} 4. Nc3 {[%emt 0:00:30]} b6 {[%emt 0:00:00]} 5. cxd5 {[%emt 0:00:00]} exd5 {[%emt 0:00:00]} 6. Bg5 {[%emt 0:00:00]} Bb7 {[%emt 0:00:00]} 7. e3 {[%emt 0:00:00]} Be7 {[%emt 0:00:00]} 8. Bb5+ {[%emt 0:01:00]} Nbd7 {[%emt 0:00:00]} 9. Bxf6 {[%emt 0:01:30]} Bxf6 {[%emt 0:00:00]} 10. Qa4 {[%emt 0:00:00]} a6 {[%emt 0:00:30]} 11. Bd3 {[%emt 0:02:00]} O-O {[%emt 0:01:30]} 12. Qb3 {[%emt 0:02:30]} Qe7 {[%emt 0:01:30]} 13. O-O {[%emt 0:00:30]} Qd6 {[%emt 0:05:30]} 14. e4 {[%emt 0:09:30]} dxe4 {[%emt 0:03:30]} 15. Bxe4 {[%emt 0:08:30]} Bxe4 {[%emt 0:05:30]} 16. Nxe4 {[%emt 0:00:00]} Qf4 {[%emt 0:01:30]} 17. Rfe1 {[%emt 0:08:00]} Rfe8 {[%emt 0:02:30]} 18. g3 {[%emt 0:08:30]} Qg4 {[%emt 0:14:30]} 19. Nxf6+ {[%emt 0:04:30]} Nxf6 {[%emt 0:01:30]} 20. Re5 {[%emt 0:05:30]} Rxe5 {[%emt 0:06:30]} 21. dxe5 {[%emt 0:07:30]} Ne4 {[%emt 0:09:30]} 22. Rd1 {[%emt 0:02:30]} Nc5 {[%emt 0:12:30]} 23. Qd5 {[%emt 0:03:30]} Rf8 {[%emt 0:02:30]} 24. Rc1 {[%emt 0:09:30]} Ne6 {[%emt 0:04:30]} 25. Qc6 {[%emt 0:05:30]} Nc5 {[%emt 0:09:48]} 26. Rd1 {[%emt 0:05:24]} Ne6 {[%emt 0:02:43]} 27. a3 {[%emt 0:02:37]} h6 {[%emt 0:05:07]} 28. Rd7 {[%emt 0:01:30]} a5 {[%emt 0:02:54]} 29. Nd2 {[%emt 0:05:26]} Nd4 {[%emt 0:04:45]} 30. Qd5 {[%emt 0:01:48]} Ne2+ {[%emt 0:04:04]} 31. Kf1 {[%emt 0:00:29]} Nf4 {[%emt 0:00:00]} 32. gxf4 {[%emt 0:04:18]} Qd1+ {[%emt 0:00:00]} 1/2-1/2